bitfinex-derivatives/quotes_SOLF0:USTF0_20240902
["timestamp","ask_amount","ask_price","bid_price","bid_amount"]
[1725302028728,0.04768841,133.31,133.3,3.7511]
[1725302029529,0.04768841,133.31,133.29,3.7513]
[1725302030035,0.04768841,133.31,133.3,3.7511]
[1725302031933,11.56768841,133.31,133.3,3.7511]
[1725302034335,0.04768841,133.31,133.3,3.7511]
[1725302036437,0.04768841,133.31,133.28,0.04799934]
[1725302036438,11.56768841,133.31,133.29,3.7512]
[1725302036639,11.52,133.3,133.29,3.7512]
[1725302042354,11.52,133.3,133.28,3.79959934]
[1725302042543,11.52,133.29,133.28,3.79959934]
[1725302042748,11.52,133.29,133.28,0.04799934]
[1725302043453,15.2714,133.29,133.28,0.04799934]
[1725302044941,3.7513,133.3,133.28,3.79959934]
[1725302045142,0.04768841,133.31,133.28,0.04799934]
[1725302045344,11.56768841,133.31,133.28,0.04799934]
[1725302045651,11.52,133.3,133.28,3.79949934]
[1725302045842,11.52,133.3,133.28,0.04799934]
[1725302047147,11.52,133.3,133.29,3.7514]
[1725302049146,0.04768841,133.31,133.3,3.7511]
[1725302049546,11.56768841,133.31,133.3,3.7511]
[1725302049844,11.56768841,133.31,133.29,3.7512]
[1725302050044,11.52,133.3,133.29,3.7512]
[1725302050252,11.52,133.3,133.28,3.79949934]
[1725302051664,11.56768841,133.31,133.28,0.04799934]
[1725302052765,11.56768841,133.31,133.3,3.7511]
[1725302054161,0.04768841,133.31,133.3,3.7511]
[1725302055064,11.56768841,133.31,133.3,3.7511]
[1725302062471,11.56768841,133.31,133.28,0.04799934]
[1725302062670,11.52,133.29,133.23,1.358]
[1725302062973,11.52,133.25,133.21,1.4037]
[1725302063174,49.8321,133.27,133.24,3.7528]
[1725302063364,11.52,133.25,133.24,3.7528]
[1725302063566,15.22348139,133.25,133.24,3.7528]
[1725302063775,11.52,133.26,133.25,3.7524]
[1725302063967,0.04847524,133.26,133.23,0.04746483]
[1725302064770,0.04847524,133.26,133.25,3.7525]
[1725302065570,11.56847524,133.26,133.25,3.7525]
[1725302065777,11.56847524,133.26,133.23,0.04746483]
[1725302065778,15.35534544,133.26,133.23,0.04746483]
[1725302066074,11.52,133.24,133.23,0.04746483]
[1725302066286,3.7531,133.23,133.2,99.82157748]
[1725302066473,11.52,133.22,133.2,99.82157748]
[1725302066870,11.52,133.22,133.21,3.7536]
[1725302067677,11.52,133.22,133.2,99.87012581]
[1725302068074,32.63450294,133.23,133.2,0.04854833]
[1725302068280,28.83,133.22,133.2,0.04854833]
[1725302068985,3.7536,133.21,133.2,0.04854833]
[1725302075188,3.7543,133.19,133.16,3.7549]
[1725302075388,32.5843,133.19,133.16,3.7549]
[1725302075989,36.31862454,133.19,133.16,3.7549]
[1725302076184,36.36899994,133.19,133.16,3.8066867]
[1725302078505,36.36899994,133.19,133.16,0.0517867]
[1725302078506,3.7547,133.17,133.16,0.0517867]
[1725302078797,32.5847,133.17,133.16,0.0517867]
[1725302079001,3.7547,133.17,133.16,0.0517867]
[1725302079896,28.83,133.18,133.16,0.0517867]
[1725302080101,28.83,133.18,133.16,3.8067867]
[1725302080504,28.83,133.18,133.16,0.0517867]
[1725302082305,28.83,133.18,133.16,3.8067867]
[1725302086409,32.5845,133.18,133.16,3.8067867]
[1725302086908,28.83,133.18,133.16,3.8067867]
[1725302088513,32.5845,133.18,133.16,0.0517867]
[1725302090014,11.54,133.17,133.16,0.0517867]
[1725302090608,3.7545,133.18,133.16,3.8067867]
[1725302090804,3.78469994,133.19,133.16,0.0517867]
[1725302090805,0.0503754,133.19,133.16,0.0517867]
[1725302091009,11.5903754,133.19,133.16,0.0517867]
[1725302091210,15.42281508,133.19,133.16,0.0517867]
[1725302092314,19.17701508,133.19,133.17,3.7546]
[1725302095715,15.42281508,133.19,133.18,3.7545]
[1725302096016,11.5903754,133.19,133.18,3.7545]
[1725302098711,15.25551508,133.19,133.18,3.7545]
[1725302099727,15.25551508,133.19,133.17,3.7546]
[1725302099927,11.54,133.18,133.17,3.7546]
[1725302100523,11.54,133.18,133.16,0.0517867]
[1725302101125,3.7547,133.17,133.16,0.0517867]
[1725302102826,15.2946,133.18,133.16,0.0517867]
[1725302103225,3.7547,133.17,133.16,0.0517867]
[1725302103824,3.7546,133.18,133.16,0.0517867]
[1725302104028,11.54,133.17,133.16,0.0517867]
[1725302104224,3.71551508,133.19,133.16,0.0517867]
[1725302104531,11.5903754,133.19,133.17,3.7547]
[1725302105428,11.54,133.18,133.17,3.7547]
[1725302105631,11.54,133.18,133.16,0.0517867]
[1725302106332,3.7547,133.17,133.16,0.0517867]
[1725302106728,3.7552,133.16,133.13,3.7557]
[1725302106930,11.54,133.14,133.13,3.7557]
[1725302111639,15.2956,133.14,133.09,96.52067979]
[1725302111840,3.81253383,133.14,133.09,96.52067979]
[1725302112039,11.54,133.11,133.09,96.52067979]
[1725302112237,11.54,133.11,133.1,3.7565]
[1725302113336,11.59309361,133.12,133.1,3.7565]
[1725302113926,11.59309361,133.12,133.11,3.7564]
[1725302114133,0.05309361,133.12,133.11,3.7564]
[1725302114335,11.54,133.15,133.09,108.06067979]
[1725302114830,11.54,133.15,133.13,3.7557]
[1725302115027,1.4574,133.19,133.09,108.06067979]
[1725302115233,15.2948,133.17,133.14,3.7554]
[1725302115427,15.2948,133.17,133.09,108.06067979]
[1725302115631,11.58950989,133.15,133.13,0.04749695]
[1725302115939,11.54,133.14,133.13,0.04749695]
[1725302116136,11.54,133.14,133.13,3.80339695]
[1725302117234,15.2956,133.14,133.11,3.7562]
[1725302117535,11.54,133.12,133.11,3.7562]
[1725302117842,11.54,133.12,133.1,3.7566]
[1725302118039,15.3877428,133.12,133.1,3.7566]
[1725302118442,15.4425944,133.12,133.1,3.79657614]
[1725302120333,19.1987944,133.12,133.1,0.03997614]
[1725302120737,3.9025944,133.12,133.06,1.385]
[1725302121144,0.0548516,133.12,133.07,11.54]
[1725302121439,11.54,133.17,133.1,11.54]
[1725302121641,11.54,133.17,133.11,1.4627]
[1725302121942,11.54,133.17,133.15,3.7552]
[1725302122141,5.16467859,133.19,133.11,1.4627]
[1725302122345,0.05441354,133.16,133.14,0.04813165]
[1725302122844,0.05441354,133.16,133.15,3.7553]
[1725302123643,11.59441354,133.16,133.15,3.7553]
[1725302124138,0.05441354,133.16,133.15,3.7553]
[1725302126646,0.05441354,133.16,133.14,3.80363165]
[1725302127743,0.05441354,133.16,133.15,3.7553]
[1725302128541,3.70343428,133.19,133.17,3.7547]
[1725302128745,28.86,133.2,133.17,3.7547]
[1725302128939,32.614,133.2,133.17,3.7547]
[1725302129333,3.71075559,133.19,133.17,3.7547]
[1725302129538,3.76092503,133.19,133.17,3.80852711]
[1725302130743,36.37522503,133.19,133.17,0.05382711]
[1725302132339,36.37522503,133.19,133.11,1.4627]
[1725302132340,32.62092503,133.19,133.11,1.4627]
[1725302132540,28.86,133.12,133.07,1.3472]
[1725302132743,28.86,133.12,133.1,3.7567]
[1725302132938,3.2509,133.18,133.07,1.3472]
[1725302133242,28.86,133.14,133.07,1.3472]
[1725302133442,0.0571225,133.12,133.09,0.05543803]
[1725302134549,0.0571225,133.12,133.11,3.7564]
[1725302134744,28.9171225,133.12,133.11,3.7564]
[1725302134938,28.9171225,133.12,133.09,0.05543803]
[1725302135150,28.86,133.11,133.09,0.05543803]
[1725302135347,28.86,133.11,133.09,3.81243803]
[1725302136450,28.86,133.11,133.09,0.05543803]
[1725302137339,3.7567,133.1,133.09,0.05543803]
[1725302137552,28.86,133.11,133.09,0.05543803]
[1725302137944,32.6167,133.11,133.09,0.05543803]
[1725302139642,0.0571225,133.12,133.09,0.05543803]
[1725302139847,28.86,133.11,133.09,3.81223803]
[1725302143852,28.86,133.11,133.1,3.7567]
[1725302147965,11.53,133.11,133.1,3.7567]
[1725302149669,225.0,133.2,133.1,15.29033091]
[1725302149867,3.218,133.24,133.12,11.53]
[1725302150162,3.218,133.24,133.13,1.3776]
[1725302150163,11.53,133.18,133.13,1.3776]
[1725302150469,15.24862877,133.18,133.13,1.3776]
[1725302150669,0.05219701,133.17,133.14,0.04806716]
[1725302151368,0.05219701,133.17,133.16,3.755]
[1725302151569,11.58219701,133.17,133.14,0.04806716]
[1725302151761,11.53,133.15,133.14,0.04806716]
[1725302152065,28.91219701,133.17,133.14,0.04806716]
[1725302153266,28.91219701,133.17,133.16,3.755]
[1725302156371,28.91219701,133.17,133.14,0.04806716]
[1725302156773,28.91219701,133.17,133.15,3.7553]
[1725302157663,28.91219701,133.17,133.14,0.04806716]
[1725302157868,28.86,133.15,133.14,0.04806716]
[1725302158262,28.86,133.15,133.09,1.3248]
[1725302158468,28.86,133.13,133.09,1.3248]
[1725302159269,0.05198073,133.12,133.1,3.80808988]
[1725302159564,0.05198073,133.12,133.1,0.05138988]
[1725302160364,3.71777119,133.12,133.1,0.05138988]
[1725302161268,3.71777119,133.12,133.1,3.80798988]
[1725302161472,3.71777119,133.12,133.1,0.05138988]
[1725302161666,0.05198073,133.12,133.05,1.3647]
[1725302161864,0.05198073,133.12,133.06,1.354]
[1725302162272,3.7922151,133.12,133.06,1.354]
[1725302162476,0.05198073,133.12,133.06,1.354]
[1725302162771,3.80828073,133.12,133.08,3.7571]
[1725302162977,0.05198073,133.12,133.06,1.354]
[1725302163371,3.72460693,133.12,133.06,1.354]
[1725302163571,0.05198073,133.12,133.06,1.354]
[1725302164274,0.05198073,133.12,133.09,3.7567]
[1725302165171,0.05198073,133.12,133.06,1.354]
[1725302165366,0.05198073,133.12,133.1,3.7567]
[1725302165971,3.87354346,133.12,133.06,1.354]
[1725302166179,28.86,133.11,133.05,1.3647]
[1725302166376,0.04992058,133.09,133.05,1.3647]
[1725302166578,28.90992058,133.09,133.01,1.4621]
[1725302166883,0.05011908,133.06,133.01,1.4621]
[1725302167083,0.05011908,133.06,133.01,5.15958214]
[1725302167286,0.05011908,133.06,133.01,1.4621]
[1725302168476,0.05011908,133.06,133.04,3.7582]
[1725302168875,0.05011908,133.06,133.05,3.7581]
[1725302174491,28.86,133.11,133.08,3.7571]
[1725302174782,2.8183,133.13,133.01,1.4621]
[1725302174783,28.86,133.13,133.04,28.86]
[1725302174980,3.78964376,133.12,133.05,1.3579]
[1725302175175,32.6159,133.13,133.05,1.3579]
[1725302175379,32.6159,133.13,133.06,1.3488]
[1725302175579,28.86,133.13,133.11,3.7564]
[1725302176179,28.91706646,133.13,133.11,3.7564]
[1725302176384,28.91706646,133.13,133.11,3.80901242]
[1725302177582,0.05706646,133.13,133.12,3.7561]
[1725302182985,28.86,133.2,133.16,3.755]
[1725302183384,36.3641,133.2,133.11,31.648]
[1725302183591,36.3641,133.2,133.16,3.7548]
[1725302183793,28.86,133.18,133.16,3.7548]
[1725302184189,28.9144942,133.18,133.16,3.80472242]
[1725302184385,0.0544942,133.18,133.17,3.7547]
[1725302188293,28.9144942,133.18,133.16,0.04992242]
[1725302188993,3.7547,133.17,133.16,0.04992242]
[1725302189194,28.9144942,133.18,133.16,0.04992242]
[1725302189798,32.6690942,133.18,133.16,0.04992242]
[1725302191396,28.9144942,133.18,133.16,0.04992242]
[1725302191600,3.7547,133.17,133.16,0.04992242]
[1725302192900,28.9144942,133.18,133.08,31.6008]
[1725302193098,28.86,133.15,133.12,3.7559]
[1725302193800,32.59291272,133.15,133.12,3.7559]
[1725302193999,32.64753976,133.15,133.12,3.80967555]
[1725302195005,32.64753976,133.15,133.13,3.7558]
[1725302195298,0.05462704,133.15,133.12,0.05377555]
[1725302195502,0.05462704,133.15,133.14,3.7556]
[1725302198409,28.91462704,133.15,133.12,0.05377555]
[1725302198899,28.86,133.14,133.12,0.05377555]
[1725302199602,3.7559,133.13,133.12,0.05377555]
[1725302201103,28.86,133.14,133.12,0.05377555]
[1725302201297,0.05462704,133.15,133.12,0.05377555]
[1725302202098,0.05462704,133.15,133.14,3.7556]
[1725302208305,0.05462704,133.15,133.12,0.05377555]
[1725302208909,0.05462704,133.15,133.14,3.7556]
[1725302211219,0.05462704,133.15,133.12,0.05377555]
[1725302211906,28.86,133.14,133.12,0.05377555]
[1725302212817,3.7559,133.13,133.12,0.05377555]
[1725302213020,57.72,133.14,133.05,1.3835]
[1725302213215,28.86,133.1,133.05,1.3835]
[1725302213417,3.76586794,133.09,133.05,1.3835]
[1725302213617,3.76586794,133.09,133.06,3.7578]
[1725302214009,3.81922864,133.09,133.06,3.7578]
[1725302214217,3.8105607,133.09,133.06,3.7578]
[1725302214816,32.68107714,133.08,133.05,3.758]
[1725302215024,36.43847714,133.08,133.05,3.758]
[1725302215418,36.43847714,133.08,133.04,3.7583]
[1725302215419,32.68107714,133.08,133.04,3.7583]
[1725302215621,32.68107714,133.08,133.01,1.4462]
[1725302215622,3.758,133.06,133.01,1.4462]
[1725302215923,28.91615858,133.07,133.01,1.4462]
[1725302216225,32.67395858,133.07,133.03,3.7586]
[1725302218925,28.91615858,133.07,133.04,3.7582]
[1725302219824,32.67375858,133.07,133.04,3.7582]
[1725302220635,32.67375858,133.07,133.03,3.7586]
[1725302220832,3.758,133.06,133.03,3.7586]
[1725302221132,3.758,133.06,132.98,28.86]
[1725302221133,28.86,133.05,132.97,4.1751]
[1725302221318,0.0517038,133.02,133.01,3.759]
[1725302222128,0.0517038,133.02,132.97,2.8352]
[1725302222528,3.7597,133.0,132.97,3.7602]
[1725302222832,3.71457565,132.99,132.97,3.7602]
[1725302223031,0.05286994,132.99,132.98,3.7601]
[1725302224130,3.77383513,132.99,132.97,3.7604]
[1725302224634,3.77383513,132.99,132.93,2.7257]
[1725302224635,0.05286994,132.99,132.93,2.7257]
[1725302225226,32.6201,132.98,132.95,3.7608]
[1725302225532,32.67381774,132.98,132.95,3.7608]
[1725302225835,32.67381774,132.98,132.94,3.7611]
[1725302226128,0.05459194,132.97,132.94,3.7611]
[1725302226324,28.86,132.96,132.88,28.86]
[1725302226525,0.05712163,132.93,132.87,2.762]
[1725302226931,0.05712163,132.93,132.9,3.7623]
[1725302227429,3.81862163,132.93,132.87,2.762]
[1725302227826,0.05712163,132.93,132.87,2.762]
[1725302228434,0.05712163,132.93,132.9,28.86]
[1725302228641,3.81903686,132.98,132.91,1.4204]
[1725302228927,3.81903686,132.98,132.92,32.56316027]
[1725302229137,3.81903686,132.98,132.93,1.3271]
[1725302229328,3.81903686,132.98,132.97,3.7604]
[1725302229530,0.05145595,132.99,132.97,3.7604]
[1725302229733,3.85770124,132.99,132.97,3.7604]
[1725302230230,7.61770124,132.99,132.96,3.8178629]
[1725302230431,28.86,132.98,132.96,3.8178629]
[1725302231130,28.86,132.98,132.97,3.7604]
[1725302231428,0.05145595,132.99,132.96,0.0573629]
[1725302231632,0.05145595,132.99,132.98,3.7601]
[1725302232630,28.91145595,132.99,132.97,3.7602]
[1725302234943,28.91145595,132.99,132.96,0.0573629]
[1725302234944,0.05145595,132.99,132.96,0.0573629]
[1725302236134,28.86,133.05,132.96,28.9173629]
[1725302236341,28.86,133.05,132.97,1.4441]
[1725302236527,32.6182,133.05,132.97,1.4441]
[1725302237040,0.04856178,133.02,133.01,3.7593]
[1725302238536,0.04856178,133.02,133.0,0.05188138]
[1725302239135,0.04856178,133.02,133.01,3.7593]
[1725302240039,28.86,133.07,133.04,3.7582]
[1725302241039,0.04973147,133.07,133.04,0.05013956]
[1725302241639,0.04973147,133.07,133.05,3.7581]
[1725302242140,28.90973147,133.07,133.04,0.05013956]
[1725302242340,28.86,133.05,132.99,1.4102]
[1725302242545,28.86,133.03,132.96,1.4011]
[1725302242744,3.759,133.02,132.98,3.7599]
[1725302243445,0.05330089,133.01,132.99,0.05114664]
[1725302244140,0.05330089,133.01,132.99,3.81094664]
[1725302244546,0.05330089,133.01,132.99,0.05114664]
[1725302245453,3.81270089,133.01,132.99,0.05114664]
[1725302246254,32.6195,133.0,132.99,0.05114664]
[1725302246547,28.86,133.0,132.94,85.40199077]
[1725302246749,32.6203,132.98,132.94,85.40199077]
[1725302247547,0.05718096,132.97,132.95,0.04991285]
[1725302248346,0.05718096,132.97,132.95,3.81081285]
[1725302249352,3.81768096,132.97,132.95,0.04991285]
[1725302249659,28.86,132.96,132.95,0.04991285]
[1725302250351,28.86,132.96,132.95,3.81091285]
[1725302252448,28.86,132.96,132.95,0.04991285]
[1725302254555,32.6956525,132.96,132.95,0.04991285]
[1725302254757,28.86,132.96,132.95,0.04991285]
[1725302254960,0.05718096,132.97,132.95,0.04991285]
[1725302255156,0.05718096,132.97,132.95,3.81091285]
[1725302255559,0.05718096,132.97,132.95,0.04991285]
[1725302256958,0.05718096,132.97,132.95,3.81071285]
[1725302261063,28.86,132.96,132.83,28.86]
[1725302261264,28.86,132.91,132.86,2.7753]
[1725302261464,28.86,132.91,132.89,3.7626]
[1725302262066,28.91547801,132.91,132.89,0.0239807]
[1725302262967,28.91547801,132.91,132.89,3.7864807]
[1725302263659,28.91547801,132.91,132.89,3.7865807]
[1725302263859,28.91547801,132.91,132.89,0.0239807]
[1725302264059,0.05547801,132.91,132.89,0.0239807]
[1725302264268,28.86,132.93,132.91,3.7619]
[1725302264864,28.86,132.97,132.89,0.0239807]
[1725302265073,28.86,132.97,132.87,30.1956]
[1725302265272,0.05697523,132.93,132.92,3.7618]
[1725302265461,28.86,132.99,132.93,2.7151]
[1725302266068,32.62,132.99,132.95,3.7608]
[1725302266567,0.04987793,132.98,132.96,0.04828899]
[1725302267163,0.04987793,132.98,132.96,3.80898899]
[1725302270872,3.80997793,132.98,132.96,3.80898899]
[1725302271979,0.04987793,132.98,132.96,3.80898899]
[1725302274978,3.80997793,132.98,132.96,3.80898899]
[1725302284077,11.56,132.97,132.96,0.04828899]
[1725302284280,0.04987793,132.98,132.96,0.04828899]
[1725302284486,11.56,132.97,132.96,0.04828899]
[1725302284886,0.04987793,132.98,132.96,0.04828899]
[1725302285391,11.56,132.97,132.96,0.04828899]
[1725302285887,11.56,132.97,132.96,3.80878899]
[1725302287286,11.56,132.97,132.96,0.04828899]
[1725302287879,0.04987793,132.98,132.96,0.04828899]
[1725302288093,28.91,132.97,132.96,0.04828899]
[1725302288392,32.6704,132.97,132.96,0.04828899]
[1725302288885,28.91,132.94,132.9,3.7622]
[1725302289086,28.91,132.92,132.88,4.1881]
[1725302289290,28.91,132.93,132.88,4.1881]
[1725302289592,28.91,132.93,132.9,3.7622]
[1725302289985,28.96705572,132.93,132.9,3.81160318]
[1725302290589,32.80742283,132.93,132.9,3.81160318]
[1725302290783,36.56912283,132.93,132.9,3.81160318]
[1725302291185,28.91,132.92,132.9,0.04940318]
[1725302291495,3.7621,132.91,132.9,0.04940318]
[1725302293098,7.4558547,132.91,132.9,0.04940318]
[1725302294598,3.7626,132.9,132.86,3.7634]
[1725302294797,28.91,132.89,132.86,3.7634]
[1725302295294,32.6727,132.89,132.86,3.7634]
[1725302295795,36.43145575,132.89,132.86,0.03384818]
[1725302295998,28.91,132.88,132.86,0.03384818]
[1725302296397,3.69967642,132.87,132.86,0.03384818]
[1725302298297,3.7632,132.87,132.86,0.03384818]
[1725302299094,0.1083,132.98,132.86,0.03384818]
[1725302299292,2.50821802,132.97,132.88,28.91]
[1725302299599,3.7607,132.96,132.88,28.91]
[1725302299897,3.7607,132.96,132.89,1.4141]
[1725302300199,3.7607,132.96,132.92,3.7618]
[1725302300402,7.57901043,132.96,132.92,3.7618]
[1725302300586,3.7607,132.96,132.92,3.7618]
[1725302300791,0.05034613,132.94,132.92,3.7618]
[1725302303297,0.05034613,132.94,132.91,3.81922011]
[1725302303603,0.05034613,132.94,132.91,0.05722011]
[1725302303806,28.91,132.93,132.91,0.05722011]
[1725302304400,32.6717,132.93,132.91,0.05722011]
[1725302304707,28.91,132.93,132.91,0.05722011]
[1725302304902,32.6716,132.93,132.91,0.05722011]
[1725302305499,3.7618,132.92,132.91,0.05722011]
[1725302306297,32.6716,132.93,132.91,0.05722011]
[1725302307004,28.91,132.93,132.91,0.05722011]
[1725302308000,32.6716,132.93,132.91,0.05722011]
[1725302308802,0.05034613,132.94,132.91,0.05722011]
[1725302309193,0.1102,133.03,132.91,0.05722011]
[1725302309397,253.91,133.01,132.92,28.91]
[1725302309605,257.61993227,133.01,132.92,32.71022573]
[1725302310001,261.37933227,133.01,132.97,3.7602]
[1725302310610,28.91,132.99,132.96,3.7606]
[1725302310807,28.91,132.99,132.98,0.05199023]
[1725302314598,0.0509661,133.0,132.98,0.05199023]
[1725302314599,0.0509661,133.0,132.99,3.7598]
[1725302314996,28.91,133.03,132.98,0.05199023]
[1725302315203,3.71944852,133.03,133.02,3.7588]
[1725302315396,28.91,133.05,133.02,3.7588]
[1725302316305,28.95764784,133.05,133.02,3.81328442]
[1725302316897,32.71574784,133.05,133.02,3.81328442]
[1725302317207,28.95764784,133.05,133.02,0.05448442]
[1725302317501,32.71584784,133.05,133.02,0.05448442]
[1725302317704,28.95764784,133.05,133.02,3.81328442]
[1725302318006,28.95764784,133.05,133.02,0.05448442]
[1725302318412,0.04764784,133.05,133.02,0.05448442]
[1725302318908,0.04764784,133.05,133.04,3.7584]
[1725302321408,0.04764784,133.05,133.03,3.7586]
[1725302321610,0.04764784,133.05,133.02,1.51908442]
[1725302322412,0.04764784,133.05,133.04,3.7584]
[1725302324315,0.04764784,133.05,133.03,3.7585]
[1725302325304,0.04764784,133.05,133.03,3.7587]
[1725302325511,0.04764784,133.05,133.02,1.51908442]
[1725302326613,0.04764784,133.05,133.03,3.7587]
[1725302326814,0.04764784,133.05,133.02,1.51908442]
[1725302327015,0.04764784,133.05,133.03,3.7587]
[1725302327318,3.80604784,133.05,133.02,1.51908442]
[1725302327612,0.04764784,133.05,133.03,3.7587]
[1725302330314,0.04764784,133.05,133.02,3.81328442]
[1725302330516,28.95764784,133.05,133.02,0.05448442]
[1725302331020,3.7585,133.04,133.02,0.05448442]
[1725302331623,3.80594784,133.05,133.02,3.81318442]
[1725302331920,0.04764784,133.05,133.02,0.05448442]
[1725302332519,0.04764784,133.05,133.03,3.7586]
[1725302333217,3.80574784,133.05,133.03,3.7586]
[1725302338137,0.04764784,133.05,133.03,3.7586]
[1725302340630,3.80594784,133.05,133.02,3.81328442]
[1725302340934,0.04764784,133.05,133.02,3.81328442]
[1725302341331,3.80594784,133.05,133.02,3.81328442]
[1725302341539,3.80594784,133.05,133.03,3.7587]
[1725302342330,0.04764784,133.05,133.04,3.7584]
[1725302344149,3.7572,133.09,133.06,3.7577]
[1725302344647,3.68959065,133.12,133.09,3.757]
[1725302344850,28.91,133.14,133.09,3.757]
[1725302345037,3.7562,133.12,133.1,0.05129671]
[1725302345237,3.87939935,133.13,133.1,3.80789671]
[1725302345646,7.63539935,133.13,133.1,3.80789671]
[1725302346342,3.7562,133.12,133.1,0.05129671]
[1725302346542,32.6662,133.12,133.1,0.05129671]
[1725302347551,3.7564,133.11,133.1,0.05129671]
[1725302354648,3.7573,133.08,133.04,2.7499]
[1725302355158,3.7573,133.08,133.05,3.7581]
[1725302355362,3.7573,133.08,133.04,2.7499]
[1725302355652,0.05276342,133.07,133.05,0.05693216]
[1725302356659,0.05276342,133.07,133.06,3.7577]
[1725302359260,3.7565,133.11,133.05,0.05693216]
[1725302359558,28.91,133.12,133.04,2.7499]
[1725302360146,32.6663,133.12,133.09,3.7569]
[1725302360353,0.04941919,133.12,133.09,0.0565456]
[1725302360563,225.0,133.2,133.14,3.7554]
[1725302360756,28.91,133.19,133.14,3.7554]
[1725302360953,28.91,133.21,133.11,28.91]
[1725302361155,3.7539,133.2,133.11,28.91]
[1725302361552,0.0500625,133.17,133.14,0.04889262]
[1725302362756,0.0500625,133.17,133.16,3.755]
[1725302363155,0.0500625,133.17,133.14,0.04889262]
[1725302363655,0.0500625,133.17,133.15,3.7551]
[1725302364064,0.0500625,133.17,133.14,0.04889262]
[1725302364560,32.6634,133.22,133.14,0.04889262]
[1725302364954,32.6634,133.22,133.13,28.91]
[1725302365156,28.91,133.22,133.18,3.7542]
[1725302365665,0.05113661,133.21,133.19,0.0504723]
[1725302366059,0.05113661,133.21,133.19,3.8046723]
[1725302366662,0.05113661,133.21,133.19,0.0504723]
[1725302368162,0.05113661,133.21,133.19,3.8044723]
[1725302368668,0.05113661,133.21,133.2,3.7539]
[1725302368858,3.7767676,133.24,133.19,0.0504723]
[1725302369462,3.7767676,133.24,133.22,3.7532]
[1725302369665,28.91,133.25,133.18,1.3239]
[1725302369866,0.05332432,133.23,133.2,0.05685314]
[1725302370164,0.05668439,133.23,133.2,0.05033493]
[1725302370366,3.80986338,133.27,133.2,0.05033493]
[1725302370561,3.7519,133.27,133.24,3.7525]
[1725302371171,3.66799279,133.26,133.24,3.7525]
[1725302371370,7.47628867,133.26,133.24,0.05436916]
[1725302371565,3.80829588,133.26,133.24,0.05436916]
[1725302372064,7.54347077,133.26,133.24,0.05436916]
[1725302372264,0.05609588,133.26,133.24,3.80706916]
[1725302374669,28.96609588,133.26,133.24,0.05436916]
[1725302375265,3.7525,133.25,133.24,0.05436916]
[1725302375463,28.96609588,133.26,133.18,2.782]
[1725302375659,28.91,133.23,133.18,2.782]
[1725302376065,3.7534,133.22,133.19,3.7539]
[1725302376364,3.80739085,133.22,133.19,3.8024488]
[1725302382278,0.05399085,133.22,133.2,3.7539]
[1725302382882,0.05399085,133.22,133.19,3.8025488]
[1725302384376,0.05399085,133.22,133.2,3.7537]
[1725302386978,0.05399085,133.22,133.19,0.0485488]
[1725302387678,0.05399085,133.22,133.2,3.7537]
[1725302392090,3.80729085,133.22,133.2,3.7537]
[1725302392279,11.58399085,133.22,133.19,0.0485488]
[1725302393100,15.33749085,133.22,133.19,3.8025488]
[1725302393895,11.53,133.21,133.19,0.0485488]
[1725302394594,3.7539,133.2,133.19,0.0485488]
[1725302394804,7.48672786,133.2,133.19,0.0485488]
[1725302400409,3.7537,133.21,133.19,3.8027488]
[1725302400605,3.7537,133.21,133.19,0.0485488]
[1725302402509,3.70879327,133.2,133.19,0.0485488]
[1725302403508,7.46269327,133.2,133.19,0.0485488]
[1725302403713,15.2839,133.2,133.19,0.0485488]
[1725302404300,19.08167727,133.2,133.19,0.0485488]
[1725302405809,0.05399085,133.22,133.19,0.0485488]
[1725302406612,3.7536,133.21,133.19,3.8025488]
[1725302406809,0.05399085,133.22,133.19,0.0485488]
[1725302407012,0.05399085,133.22,133.21,3.7536]
[1725302407408,15.34474253,133.27,133.21,11.53]
[1725302407611,11.53,133.31,133.24,11.53]
[1725302408206,3.7514,133.29,133.26,3.752]
[1725302408403,3.80115952,133.29,133.26,3.80860533]
[1725302415116,3.7517,133.28,133.26,3.80860533]
[1725302420020,3.7517,133.28,133.26,0.05660533]